fUSD/lending_fUSD_20240301
["ID","MTS","AMOUNT","RATE_DAILY","PERIOD"]
[316035175,1709329865124,-500.0,0.00022246,2]
[316035176,1709329865135,-500.0,0.00022246,2]
[316035177,1709329865146,-500.0,0.00022246,2]
[316035178,1709329865157,-3986.3,0.00022246,2]
[316035179,1709329865167,-1536.66,0.00022246,2]
[316035180,1709329865178,-5704.02,0.00022246,2]
[316035181,1709329865189,-2939.1,0.00022246,2]
[316035182,1709329865199,-6997.69,0.00022246,2]
[316035183,1709329865210,-1390.92,0.00022246,2]
[316035184,1709329865222,-500.0,0.00022246,2]
[316035185,1709329865233,-500.0,0.00022246,2]
[316035186,1709329865244,-4442.43,0.00022246,2]
[316035187,1709329865253,-304.86,0.00022246,2]
[316035188,1709329865263,-2228.9,0.00022246,2]
[316035189,1709329865273,-639.17,0.00022246,2]
[316035190,1709329865283,-1976.49,0.00022246,2]
[316035191,1709329865294,-3123.93,0.00022246,2]
[316035192,1709329865303,-500.0,0.00022246,2]
[316035193,1709329865314,-1147.94,0.00022246,2]
[316035194,1709329865324,-500.0,0.00022246,2]
[316035195,1709329865334,-20416.4,0.00022246,2]
[316035196,1709329865344,-500.0,0.00022246,2]
[316035197,1709329865355,-500.0,0.00022246,2]
[316035198,1709329865365,-585.63,0.00022246,2]
[316035199,1709329865375,-500.0,0.00022246,2]
[316035200,1709329865385,-500.0,0.00022246,2]
[316035201,1709329865395,-9797.77,0.00022246,2]
[316035202,1709329865405,-500.0,0.00022246,2]
[316035203,1709329865415,-6799.24,0.00022246,2]
[316035204,1709329865426,-500.0,0.00022246,2]
[316035205,1709329865441,-650.69,0.00022246,2]
[316035206,1709329865451,-500.0,0.00022246,2]
[316035207,1709329865462,-1385.03,0.00022246,2]
[316035208,1709329865475,-500.0,0.00022246,2]
[316035209,1709329865484,-2124.38,0.00022246,2]
[316035210,1709329865494,-694.46,0.00022246,2]
[316035211,1709329865504,-500.0,0.00022246,2]
[316035212,1709329865514,-614.08,0.00022246,2]
[316035213,1709329865523,-2499.33,0.00022246,2]
[316035214,1709329865532,-500.0,0.00022246,2]
[316035215,1709329865542,-500.0,0.00022246,2]
[316035216,1709329865552,-3910.29,0.00022246,2]
[316035217,1709329865561,-500.0,0.00022246,2]
[316035218,1709329865571,-1061.29106492,0.00022285,2]
[316035219,1709329865580,-1379.07328621,0.00022306,2]
[316035220,1709329865590,-500.0,0.00022356,2]
[316035221,1709329865599,-500.0,0.00022356,2]
[316035222,1709329865609,-500.0,0.00022356,2]
[316035223,1709329865618,-500.0,0.00022356,2]
[316035224,1709329865628,-631.13150748,0.00022356,2]
[316035225,1709329865638,-500.0,0.00022356,2]
[316035226,1709329865647,-500.0,0.00022356,2]
[316035227,1709329865657,-500.0,0.00022356,2]
[316035228,1709329865667,-500.0,0.00022356,2]
[316035229,1709329865676,-500.0,0.00022356,2]
[316035230,1709329865685,-500.0,0.00022356,2]
[316035231,1709329865694,-500.0,0.00022356,2]
[316035232,1709329865704,-500.0,0.00022356,2]
[316035233,1709329865713,-500.0,0.00022356,2]
[316035234,1709329865724,-500.0,0.00022356,2]
[316035235,1709329865736,-500.0,0.00022356,2]
[316035236,1709329865744,-500.0,0.00022356,2]
[316035237,1709329865753,-500.0,0.00022356,2]
[316035238,1709329865762,-500.0,0.00022356,2]
[316035239,1709329865771,-278.59,0.00022356,2]
[316035240,1709329865780,-500.0,0.00022356,2]
[316035241,1709329865790,-500.0,0.00022356,2]
[316035242,1709329865799,-500.0,0.00022356,2]
[316035243,1709329865809,-648.85,0.00022356,2]
[316035244,1709329865818,-500.0,0.00022356,2]
[316035245,1709329865828,-500.0,0.00022356,2]
[316035246,1709329865838,-500.0,0.00022356,2]
[316035247,1709329865848,-548.39,0.00022356,2]
[316035248,1709329865857,-500.0,0.00022356,2]
[316035249,1709329865867,-500.0,0.00022356,2]
[316035250,1709329865878,-500.0,0.00022356,2]
[316035251,1709329865888,-500.0,0.00022356,2]
[316035252,1709329865898,-500.0,0.00022356,2]
[316035253,1709329865907,-500.0,0.00022356,2]
[316035254,1709329865917,-500.0,0.00022356,2]
[316035255,1709329865926,-500.0,0.00022356,2]
[316035256,1709329865935,-500.0,0.00022356,2]
[316035257,1709329865945,-500.0,0.00022356,2]
[316035258,1709329865954,-500.0,0.00022356,2]
[316035259,1709329865963,-547.18,0.00022356,2]
[316035260,1709329865973,-500.0,0.00022356,2]
[316035261,1709329865983,-500.0,0.00022356,2]
[316035262,1709329865993,-500.0,0.00022356,2]
[316035263,1709329866003,-500.0,0.00022356,2]
[316035264,1709329866013,-500.0,0.00022356,2]
[316035265,1709329866022,-500.0,0.00022356,2]
[316035266,1709329866033,-500.0,0.00022356,2]
[316035267,1709329866043,-500.0,0.00022356,2]
[316035268,1709329866053,-500.0,0.00022356,2]
[316035269,1709329866063,-500.0,0.00022356,2]
[316035270,1709329866073,-500.0,0.00022356,2]
[316035271,1709329866083,-194.52,0.00022356,2]
[316035272,1709329866093,-500.0,0.00022356,2]
[316035273,1709329866103,-500.0,0.00022356,2]
[316035274,1709329866112,-500.0,0.00022356,2]
[316035275,1709329866121,-255.73,0.00022356,2]
[316035276,1709329866131,-500.0,0.00022356,2]
[316035277,1709329866141,-560.2,0.00022356,2]
[316035278,1709329866151,-712.48,0.00022356,2]
[316035279,1709329866161,-500.0,0.00022356,2]
[316035280,1709329866172,-500.0,0.00022356,2]
[316035281,1709329866181,-583.5,0.00022356,2]
[316035282,1709329866190,-885.54,0.00022356,2]
[316035283,1709329866200,-500.0,0.00022356,2]
[316035284,1709329866209,-641.34,0.00022356,2]
[316035285,1709329866221,-563.58,0.00022356,2]
[316035286,1709329866230,-500.0,0.00022356,2]
[316035287,1709329866240,-541.37,0.00022356,2]
[316035288,1709329866250,-500.0,0.00022356,2]
[316035289,1709329866260,-500.0,0.00022356,2]
[316035290,1709329866270,-665.0,0.00022356,2]
[316035291,1709329866279,-500.0,0.00022356,2]
[316035292,1709329866290,-500.0,0.00022356,2]
[316035293,1709329866299,-500.0,0.00022356,2]
[316035294,1709329866309,-500.0,0.00022356,2]
[316035295,1709329866319,-500.0,0.00022356,2]
[316035296,1709329866329,-500.0,0.00022356,2]
[316035297,1709329866339,-729.93,0.00022356,2]
[316035298,1709329866349,-500.0,0.00022356,2]
[316035299,1709329866358,-500.0,0.00022356,2]
[316035300,1709329866368,-661.91,0.00022356,2]
[316035301,1709329866379,-593.69,0.00022356,2]
[316035302,1709329866388,-500.0,0.00022356,2]
[316035303,1709329866398,-500.0,0.00022356,2]
[316035304,1709329866408,-500.0,0.00022356,2]
[316035305,1709329866417,-707.97,0.00022356,2]
[316035306,1709329866427,-1167.66,0.00022356,2]
[316035307,1709329866437,-571.24110623,0.00022356,2]
[316035308,1709329866450,-500.0,0.00022356,2]
[316035309,1709329866460,-782.5,0.00022356,2]
[316035310,1709329866471,-500.0,0.00022356,2]
[316035311,1709329866480,-500.0,0.00022356,2]
[316035312,1709329866491,-500.0,0.00022356,2]
[316035313,1709329866501,-751.17,0.00022356,2]
[316035314,1709329866510,-500.0,0.00022356,2]
[316035315,1709329866520,-500.0,0.00022356,2]
[316035316,1709329866531,-500.0,0.00022356,2]
[316035317,1709329866541,-500.0,0.00022356,2]
[316035318,1709329866551,-216.12,0.00022356,2]
[316035319,1709329866561,-500.0,0.00022356,2]
[316035320,1709329866570,-500.0,0.00022356,2]
[316035321,1709329866580,-506.58,0.00022356,2]
[316035322,1709329866590,-500.0,0.00022356,2]
[316035323,1709329866600,-205.32,0.00022356,2]
[316035324,1709329866610,-514.76,0.00022356,2]
[316035325,1709329866620,-500.0,0.00022356,2]
[316035326,1709329866630,-658.49,0.00022356,2]
[316035327,1709329866639,-500.0,0.00022356,2]
[316035328,1709329866649,-500.0,0.00022356,2]
[316035329,1709329866659,-500.0,0.00022356,2]
[316035330,1709329866669,-500.0,0.00022356,2]
[316035331,1709329866678,-303.36246801,0.00022356,2]
[316035332,1709329866687,-500.0,0.00022356,2]
[316035333,1709329866698,-500.0,0.00022356,2]
[316035334,1709329866708,-500.0,0.00022356,2]
[316035335,1709329866718,-654.07,0.00022356,2]
[316035336,1709329866728,-632.31,0.00022356,2]
[316035337,1709329866737,-500.0,0.00022356,2]
[316035338,1709329866748,-566.35,0.00022356,2]
[316035339,1709329866757,-500.0,0.00022356,2]
[316035340,1709329866767,-500.0,0.00022356,2]
[316035341,1709329866777,-500.0,0.00022356,2]
[316035342,1709329866787,-776.51,0.00022356,2]
[316035343,1709329866796,-500.0,0.00022356,2]
[316035344,1709329866806,-1052.06,0.00022356,2]
[316035345,1709329866815,-500.0,0.00022356,2]
[316035346,1709329866825,-500.0,0.00022356,2]
[316035347,1709329866834,-500.0,0.00022356,2]
[316035348,1709329866844,-500.0,0.00022356,2]
[316035349,1709329866853,-500.0,0.00022356,2]
[316035350,1709329866863,-500.0,0.00022356,2]
[316035351,1709329866872,-500.0,0.00022356,2]
[316035352,1709329866882,-500.0,0.00022356,2]
[316035353,1709329866891,-500.0,0.00022356,2]
[316035354,1709329866901,-500.0,0.00022356,2]
[316035355,1709329866911,-500.0,0.00022356,2]
[316035356,1709329866921,-500.0,0.00022356,2]
[316035357,1709329866930,-500.0,0.00022356,2]
[316035358,1709329866939,-519.37,0.00022356,2]
[316035359,1709329866949,-500.0,0.00022356,2]
[316035360,1709329866958,-1193.37,0.00022356,2]
[316035361,1709329866969,-533.86,0.00022356,2]
[316035362,1709329866979,-500.0,0.00022356,2]
[316035363,1709329866989,-975.14,0.00022356,2]
[316035364,1709329866998,-500.0,0.00022356,2]
[316035365,1709329867008,-609.74,0.00022356,2]
[316035366,1709329867018,-612.78841587,0.00022356,2]
[316035367,1709329867028,-973.47,0.00022356,2]
[316035368,1709329867038,-500.0,0.00022356,2]
[316035369,1709329867048,-1798.71,0.00022356,2]
[316035370,1709329867058,-6097.19,0.00022356,2]
[316035371,1709329867067,-1033.26,0.00022356,2]
[316035372,1709329867077,-536.44,0.00022356,2]
[316035373,1709329867087,-2782.12,0.00022356,2]
[316035374,1709329867100,-630.64,0.00022356,2]
[316035375,1709329867109,-500.0,0.00022356,2]
[316035376,1709329867125,-500.0,0.00022356,2]
[316035377,1709329867136,-960.18,0.00022356,2]
[316035378,1709329867148,-4675.12,0.00022356,2]
[316035379,1709329867159,-573.94,0.00022356,2]
[316035380,1709329867169,-500.0,0.00022356,2]
[316035381,1709329867179,-1664.27,0.00022356,2]
[316035382,1709329867194,-638.89,0.00022356,2]
[316035383,1709329867204,-517.54,0.00022356,2]
[316035384,1709329867223,-647.88,0.00022356,2]
[316035385,1709329867232,-500.0,0.00022356,2]
[316035386,1709329867245,-500.0,0.00022356,2]
[316035387,1709329867256,-736.08,0.00022356,2]
[316035388,1709329867267,-500.0,0.00022356,2]
[316035389,1709329867280,-2492.6,0.00022356,2]
[316035390,1709329867292,-1775.86,0.00022356,2]
[316035391,1709329867303,-500.0,0.00022356,2]
[316035392,1709329867314,-14638.31,0.00022356,2]
[316035393,1709329867323,-500.0,0.00022356,2]
[316035394,1709329867336,-500.0,0.00022356,2]
[316035395,1709329867347,-500.0,0.00022356,2]
[316035396,1709329867358,-1622.72,0.00022356,2]
[316035397,1709329867369,-755.42,0.00022356,2]
[316035398,1709329867379,-2036.03,0.00022356,2]
[316035399,1709329867389,-500.0,0.00022356,2]
[316035400,1709329867400,-11286.34,0.00022356,2]
[316035401,1709329867410,-15703.3,0.00022356,2]
[316035402,1709329867420,-500.0,0.00022356,2]
[316035403,1709329867432,-485.53,0.00022356,2]
[316035404,1709329867449,-500.0,0.00022356,2]
[316035405,1709329867462,-500.0,0.00022356,2]
[316035406,1709329867474,-1103.17,0.00022356,2]
[316035407,1709329867486,-500.0,0.00022356,2]
[316035408,1709329867502,-500.0,0.00022356,2]
[316035409,1709329867514,-500.0,0.00022356,2]
[316035410,1709329867524,-2906.49,0.00022356,2]
[316035411,1709329867535,-500.0,0.00022356,2]
[316035412,1709329867548,-684.24,0.00022356,2]
[316035413,1709329867558,-500.0,0.00022356,2]
[316035414,1709329867568,-500.0,0.00022356,2]
[316035415,1709329867578,-500.0,0.00022356,2]
[316035416,1709329867588,-823.97,0.00022356,2]
[316035417,1709329867599,-690.14,0.00022356,2]
[316035418,1709329867609,-180.75388934,0.00022356,2]
[316035419,1709329867620,-731.85,0.00022356,2]
[316035420,1709329867631,-500.0,0.00022356,2]
[316035421,1709329867641,-1083.04,0.00022356,2]
[316035422,1709329867652,-500.0,0.00022356,2]
[316035423,1709329867662,-500.0,0.00022356,2]
[316035424,1709329867672,-4433.84,0.00022356,2]
[316035425,1709329867683,-500.0,0.00022356,2]
[316035426,1709329867694,-500.0,0.00022356,2]
[316035427,1709329867705,-2409.57,0.00022356,2]
[316035428,1709329867717,-500.0,0.00022356,2]
[316035429,1709329867728,-568.994489,0.00022356,2]
[316035430,1709329867739,-793.07,0.00022356,2]
[316035431,1709329867750,-500.0,0.00022356,2]
[316035432,1709329867761,-500.0,0.00022356,2]
[316035433,1709329867772,-500.0,0.00022356,2]
[316035434,1709329867782,-671.66,0.00022356,2]
[316035435,1709329867792,-500.0,0.00022356,2]
[316035436,1709329867803,-598.03,0.00022356,2]
[316035437,1709329867814,-906.18,0.00022356,2]
[316035438,1709329867824,-500.0,0.00022356,2]
[316035439,1709329867835,-500.0,0.00022356,2]
[316035440,1709329867846,-500.0,0.00022356,2]
[316035441,1709329867858,-500.0,0.00022356,2]
[316035442,1709329867869,-1022.79,0.00022356,2]
[316035443,1709329867881,-500.0,0.00022356,2]
[316035444,1709329867891,-500.0,0.00022356,2]
[316035445,1709329867901,-500.0,0.00022356,2]
[316035446,1709329867912,-500.0,0.00022356,2]
[316035447,1709329867922,-500.0,0.00022356,2]
[316035448,1709329867933,-1867.58,0.00022356,2]
[316035449,1709329867944,-1009.37,0.00022356,2]
[316035450,1709329867953,-500.0,0.00022356,2]
[316035451,1709329867963,-500.0,0.00022356,2]
[316035452,1709329867975,-500.0,0.00022356,2]
[316035453,1709329867985,-500.0,0.00022356,2]
[316035454,1709329867996,-500.0,0.00022356,2]
[316035455,1709329868006,-690.45,0.00022356,2]
[316035456,1709329868016,-500.0,0.00022356,2]
[316035457,1709329868026,-500.0,0.00022356,2]
[316035458,1709329868036,-500.0,0.00022356,2]
[316035459,1709329868046,-500.0,0.00022356,2]
[316035460,1709329868056,-570.01,0.00022356,2]
[316035461,1709329868067,-582.33,0.00022356,2]
[316035462,1709329868078,-500.0,0.00022356,2]
[316035463,1709329868089,-500.0,0.00022356,2]
[316035464,1709329868101,-1085.93,0.00022356,2]
[316035465,1709329868111,-500.0,0.00022356,2]
[316035466,1709329868122,-8957.25,0.00022356,2]
[316035467,1709329868132,-558.13,0.00022356,2]
[316035468,1709329868143,-500.0,0.00022356,2]
[316035469,1709329868155,-500.0,0.00022356,2]
[316035470,1709329868166,-339.37967949,0.00022356,2]
[316035471,1709329868178,-652.7,0.00022356,2]
[316035472,1709329868189,-500.0,0.00022356,2]
[316035473,1709329868202,-828.42,0.00022356,2]
[316035474,1709329868213,-628.37,0.00022356,2]
[316035475,1709329868227,-500.0,0.00022356,2]
[316035476,1709329868239,-500.0,0.00022356,2]
[316035477,1709329868252,-1936.54,0.00022356,2]
[316035478,1709329868264,-583.82,0.00022356,2]
[316035479,1709329868275,-2309.27,0.00022356,2]
[316035480,1709329868287,-772.94,0.00022356,2]
[316035481,1709329868299,-500.0,0.00022356,2]
[316035482,1709329868310,-560.69,0.00022356,2]
[316035483,1709329868322,-1383.28,0.00022356,2]
[316035484,1709329868333,-500.0,0.00022356,2]
[316035485,1709329868346,-648.79,0.00022356,2]
[316035486,1709329868358,-500.0,0.00022356,2]
[316035487,1709329868369,-500.0,0.00022356,2]
[316035488,1709329868381,-500.0,0.00022356,2]
[316035489,1709329868396,-1119.59,0.00022356,2]
[316035490,1709329868408,-1107.97,0.00022356,2]
[316035491,1709329868419,-500.0,0.00022356,2]
[316035492,1709329868433,-500.0,0.00022356,2]
[316035493,1709329868444,-616.79,0.00022356,2]
[316035494,1709329868454,-500.0,0.00022356,2]
[316035495,1709329868465,-500.0,0.00022356,2]
[316035496,1709329868479,-500.0,0.00022356,2]
[316035497,1709329868489,-500.0,0.00022356,2]
[316035498,1709329868499,-500.0,0.00022356,2]
[316035499,1709329868509,-500.0,0.00022356,2]
[316035500,1709329868520,-500.0,0.00022356,2]
[316035501,1709329868530,-541.7,0.00022356,2]
[316035502,1709329868542,-500.0,0.00022356,2]
[316035503,1709329868552,-1107.79,0.00022356,2]
[316035504,1709329868562,-730.36,0.00022356,2]
[316035505,1709329868574,-602.74,0.00022356,2]
[316035506,1709329868586,-500.0,0.00022356,2]
[316035507,1709329868600,-1814.09,0.00022356,2]
[316035508,1709329868611,-1150.49,0.00022356,2]
[316035509,1709329868623,-500.0,0.00022356,2]
[316035510,1709329868635,-968.24,0.00022356,2]
[316035511,1709329868647,-500.0,0.00022356,2]
[316035512,1709329868658,-507.08,0.00022356,2]
[316035513,1709329868669,-530.77,0.00022356,2]
[316035514,1709329868682,-500.0,0.00022356,2]
[316035515,1709329868693,-652.15,0.00022356,2]
[316035516,1709329868705,-500.0,0.00022356,2]
[316035517,1709329868719,-500.0,0.00022356,2]
[316035518,1709329868731,-500.0,0.00022356,2]
[316035519,1709329868744,-1032.01,0.00022356,2]
[316035520,1709329868755,-500.0,0.00022356,2]
[316035521,1709329868772,-1859.1,0.00022356,2]
[316035522,1709329868783,-500.0,0.00022356,2]
[316035523,1709329868794,-500.0,0.00022356,2]
[316035524,1709329868805,-500.0,0.00022356,2]
[316035525,1709329869109,-2102.91,0.00022356,2]
[316035526,1709329869149,-500.0,0.00022356,2]
[316035527,1709329869176,-500.0,0.00022356,2]
[316035528,1709329869189,-874.99,0.00022356,2]
[316035529,1709329869210,-500.0,0.00022356,2]
[316035530,1709329869231,-500.0,0.00022356,2]
[316035531,1709329869241,-500.0,0.00022356,2]
[316035532,1709329869257,-500.0,0.00022356,2]
[316035533,1709329869268,-839.24,0.00022356,2]
[316035534,1709329869279,-558.92,0.00022356,2]
[316035535,1709329869291,-500.0,0.00022356,2]
[316035536,1709329869305,-1097.63,0.00022356,2]
[316035537,1709329869317,-741.98,0.00022356,2]
[316035538,1709329869328,-744.7,0.00022356,2]
[316035539,1709329869339,-631.06,0.00022356,2]
[316035540,1709329869349,-500.0,0.00022356,2]
[316035541,1709329869360,-500.0,0.00022356,2]
[316035542,1709329869371,-2070.65,0.00022356,2]
[316035543,1709329869381,-760.9,0.00022356,2]
[316035544,1709329869393,-684.4,0.00022356,2]
[316035545,1709329869404,-722.67,0.00022356,2]
[316035546,1709329869414,-500.0,0.00022356,2]
[316035547,1709329869424,-1373.74,0.00022356,2]
[316035548,1709329869437,-169.61790724,0.00022356,2]
[316035549,1709329869447,-500.0,0.00022356,2]
[316035550,1709329869457,-500.0,0.00022356,2]
[316035551,1709329869470,-500.0,0.00022356,2]
[316035552,1709329869482,-500.0,0.00022356,2]
[316035553,1709329869492,-3986.3,0.00022356,2]
[316035554,1709329869503,-1536.66,0.00022356,2]
[316035555,1709329869517,-5704.02,0.00022356,2]
[316035556,1709329869537,-2939.1,0.00022356,2]
[316035557,1709329869571,-6997.69,0.00022356,2]
[316035558,1709329869589,-1390.92,0.00022356,2]
[316035559,1709329869627,-500.0,0.00022356,2]
[316035560,1709329869654,-500.0,0.00022356,2]
[316035561,1709329869669,-4442.43,0.00022356,2]
[316035562,1709329869686,-2228.9,0.00022356,2]
[316035563,1709329869701,-1976.49,0.00022356,2]
[316035564,1709329869725,-3123.93,0.00022356,2]
[316035565,1709329869754,-500.0,0.00022356,2]
[316035566,1709329869772,-1147.94,0.00022356,2]
[316035567,1709329869785,-500.0,0.00022356,2]
[316035568,1709329869818,-20416.4,0.00022356,2]
[316035569,1709329869843,-500.0,0.00022356,2]
[316035570,1709329869857,-500.0,0.00022356,2]
[316035571,1709329869876,-585.63,0.00022356,2]
[316035572,1709329869892,-500.0,0.00022356,2]
[316035573,1709329869903,-500.0,0.00022356,2]
[316035574,1709329869915,-500.0,0.00022356,2]
[316035575,1709329869926,-9797.77,0.00022356,2]
[316035576,1709329869937,-6799.24,0.00022356,2]
[316035577,1709329869948,-500.0,0.00022356,2]
[316035578,1709329869959,-500.0,0.00022356,2]
[316035579,1709329869971,-650.69,0.00022356,2]
[316035580,1709329869983,-1385.03,0.00022356,2]
[316035581,1709329869994,-500.0,0.00022356,2]
[316035582,1709329870008,-2124.38,0.00022356,2]
[316035583,1709329870019,-694.46,0.00022356,2]
[316035584,1709329870030,-500.0,0.00022356,2]
[316035585,1709329870042,-614.08,0.00022356,2]
[316035586,1709329870053,-2499.33,0.00022356,2]
[316035587,1709329870064,-500.0,0.00022356,2]
[316035588,1709329870076,-500.0,0.00022356,2]
[316035589,1709329870088,-3910.29,0.00022356,2]
[316035590,1709329870099,-500.0,0.00022356,2]
[316035591,1709329870111,-600.0,0.0002237,2]
[316035592,1709329870123,-199.53,0.00022371,2]
[316035593,1709329870134,-159.38,0.00022371,2]
[316035594,1709329870146,-200.0,0.00022387,2]
[316035595,1709329870158,-230.08,0.000224,2]
[316035596,1709329870170,-1343.23506603,0.00022405,2]
[316035597,1709329870181,-804.49269193,0.00022418,6]
[316035598,1709329870193,-490.84284807,0.00022449,3]
[316035599,1709329870204,-837.59519288,0.00022449,3]
[316035600,1709329870216,-1284.63357164,0.00022449,3]
[316035601,1709329870229,-1438.97071288,0.00022449,3]
[316035602,1709329870240,-333.83418933,0.00022449,3]
[316035603,1709329870250,-214.1908754,0.00022449,3]
[316035604,1709329870261,-1379.07328621,0.00022455,2]
[316035605,1709329870272,-4870.13,0.00022465,2]
[316035606,1709329870282,-500.0,0.00022465,2]
[316035607,1709329870292,-500.0,0.00022465,2]
[316035608,1709329870303,-500.0,0.00022465,2]
[316035609,1709329870314,-500.0,0.00022465,2]
[316035610,1709329870325,-500.0,0.00022465,2]
[316035611,1709329870336,-500.0,0.00022465,2]
[316035612,1709329870346,-500.0,0.00022465,2]
[316035613,1709329870357,-500.0,0.00022465,2]
[316035614,1709329870368,-500.0,0.00022465,2]
[316035615,1709329870379,-500.0,0.00022465,2]
[316035616,1709329870395,-500.0,0.00022465,2]
[316035617,1709329870407,-500.0,0.00022465,2]
[316035618,1709329870420,-500.0,0.00022465,2]
[316035619,1709329870435,-500.0,0.00022465,2]
[316035620,1709329870450,-500.0,0.00022465,2]
[316035621,1709329870462,-500.0,0.00022465,2]
[316035622,1709329870476,-500.0,0.00022465,2]
[316035623,1709329870489,-500.0,0.00022465,2]
[316035624,1709329870500,-500.0,0.00022465,2]
[316035625,1709329870511,-500.0,0.00022465,2]
[316035626,1709329870523,-648.85,0.00022465,2]
[316035627,1709329870534,-500.0,0.00022465,2]
[316035628,1709329870546,-500.0,0.00022465,2]
[316035629,1709329870557,-500.0,0.00022465,2]
[316035630,1709329870568,-548.39,0.00022465,2]
[316035631,1709329870579,-500.0,0.00022465,2]
[316035632,1709329870590,-585.96756078,0.00022465,2]
[316035633,1709329870601,-500.0,0.00022465,2]
[316035634,1709329870612,-500.0,0.00022465,2]
[316035635,1709329870622,-500.0,0.00022465,2]
[316035636,1709329870633,-500.0,0.00022465,2]
[316035637,1709329870644,-500.0,0.00022465,2]
[316035638,1709329870654,-500.0,0.00022465,2]
[316035639,1709329870665,-500.0,0.00022465,2]
[316035640,1709329870676,-500.0,0.00022465,2]
[316035641,1709329870687,-547.18,0.00022465,2]
[316035642,1709329870698,-500.0,0.00022465,2]
[316035643,1709329870709,-500.0,0.00022465,2]
[316035644,1709329870720,-500.0,0.00022465,2]
[316035645,1709329870731,-500.0,0.00022465,2]
[316035646,1709329870742,-500.0,0.00022465,2]
[316035647,1709329870754,-500.0,0.00022465,2]
[316035648,1709329870769,-500.0,0.00022465,2]
[316035649,1709329870780,-391.64514463,0.00022465,2]
[316035650,1709329870791,-441.69726534,0.00022465,2]
[316035651,1709329870802,-500.0,0.00022465,2]
[316035652,1709329870813,-500.0,0.00022465,2]
[316035653,1709329870824,-500.0,0.00022465,2]
[316035654,1709329870836,-500.0,0.00022465,2]
[316035655,1709329870847,-500.0,0.00022465,2]
[316035656,1709329870858,-500.0,0.00022465,2]
[316035657,1709329870869,-560.2,0.00022465,2]
[316035658,1709329870879,-712.48,0.00022465,2]
[316035659,1709329870890,-500.0,0.00022465,2]
[316035660,1709329870901,-583.5,0.00022465,2]
[316035661,1709329870913,-885.54,0.00022465,2]
[316035662,1709329870925,-500.0,0.00022465,2]
[316035663,1709329870936,-641.34,0.00022465,2]
[316035664,1709329870948,-500.0,0.00022465,2]
[316035665,1709329870959,-541.37,0.00022465,2]
[316035666,1709329870971,-500.0,0.00022465,2]
[316035667,1709329870982,-500.0,0.00022465,2]
[316035668,1709329870992,-665.0,0.00022465,2]
[316035669,1709329871002,-505.78748511,0.00022465,2]
[316035670,1709329871013,-500.0,0.00022465,2]
[316035671,1709329871024,-500.0,0.00022465,2]
[316035672,1709329871035,-500.0,0.00022465,2]
[316035673,1709329871046,-500.0,0.00022465,2]
[316035674,1709329871057,-500.0,0.00022465,2]